fUST/lending_fUST_20240119
["ID","MTS","AMOUNT","RATE_DAILY","PERIOD"]
[312072933,1705597840844,-950.0,0.00032876,2]
[312072935,1705597840853,-386.32476631,0.00033,2]
[312072937,1705597840863,-2025.74284634,0.00033,2]
[312072939,1705597840872,-469.6351844,0.00033,3]
[312072941,1705597840882,-950.0,0.0003315,2]
[312072943,1705597840893,-950.0,0.00033424,2]
[312072945,1705597840902,-153.77573265,0.00033478,7]
[312072947,1705597840911,-159.105026,0.00033678,2]
[312072949,1705597840922,-950.0,0.00033698,2]
[312072951,1705597840931,-155.0,0.00033793,2]
[312072953,1705597840941,-302.62387044,0.00033948,4]
[312072955,1705597840950,-950.0,0.00033972,2]
[312072957,1705597840959,-25153.93120552,0.00034,2]
[312072959,1705597840968,-26030.47590095,0.00034,2]
[312072961,1705597840978,-950.0,0.00034246,2]
[312072963,1705597840989,-159.105026,0.00034563,2]
[312072965,1705597840998,-153.77573265,0.00034737,7]
[312072967,1705597841008,-280.0,0.00034785,15]
[312072969,1705597841018,-5000.0,0.00034793,2]
[312072971,1705597841027,-431.6909748,0.000349,2]
[312072973,1705597841036,-431.6909748,0.000349,2]
[312072975,1705597841046,-431.6909748,0.000349,2]
[312072977,1705597841055,-431.6909748,0.000349,2]
[312072979,1705597841064,-431.6909748,0.000349,2]
[312072981,1705597841073,-431.6909748,0.000349,2]
[312072983,1705597841082,-431.6909748,0.000349,2]
[312072985,1705597841092,-431.6909748,0.000349,2]
[312072987,1705597841102,-431.6909748,0.000349,2]
[312072989,1705597841113,-431.69097,0.000349,2]
[312072991,1705597841122,-212.15557746,0.000349,2]
[312072993,1705597841131,-1600.0,0.0003499,6]
[312072995,1705597841141,-319.0046286,0.00034998,4]
[312072997,1705597841151,-238.31627781,0.00034998,4]
[312072999,1705597841161,-439.68276137,0.00034998,4]
[312073001,1705597841172,-1141.49056584,0.00034998,4]
[312073003,1705597841183,-154.95351395,0.00034998,2]
[312073005,1705597841193,-2175.14873925,0.00034998,4]
[312073007,1705597841204,-484.64184419,0.00034999,3]
[312073009,1705597841214,-5388.77112641,0.00034999,4]
[312073011,1705597841224,-432.37919385,0.00034999,2]
[312073013,1705597841234,-455.81832443,0.00034999,2]
[312073015,1705597841244,-206.04326019,0.00034999,2]
[312073017,1705597841254,-500.0,0.00034999,2]
[312073019,1705597841263,-438.50979007,0.00034999,2]
[312073020,1705597841273,-500.0,0.00034999,2]
[312073023,1705597841283,-640.23111031,0.00034999,2]
[312073025,1705597841293,-211.82240362,0.00034999,2]
[312073026,1705597841302,-500.0,0.00034999,2]
[312073028,1705597841312,-500.0,0.00034999,2]
[312073030,1705597841321,-500.0,0.00034999,2]
[312073033,1705597841334,-253.66964436,0.00035,4]
[312073035,1705597841343,-20000.0,0.00035,3]
[312073036,1705597841354,-10158.61832774,0.00035,2]
[312073039,1705597841367,-88708.72807451,0.00035,2]
[312073041,1705597841377,-6760.97413379,0.00035,4]
[312073043,1705597841386,-154.95351395,0.00035,4]
[312073045,1705597841398,-13389.41685139,0.00035,4]
[312073047,1705597841407,-1014.329825,0.00035,2]
[312073049,1705597841416,-1104.18339118,0.00035,14]
[312073051,1705597841425,-154.9690062,0.00035,4]
[312073053,1705597841434,-2977.62957927,0.00035,4]
[312073055,1705597841444,-2456.30202796,0.00035,15]
[312073057,1705597841452,-154.9690062,0.00035,2]
[312073059,1705597841462,-475.72668137,0.00035,4]
[312073072,1705597841576,-2354.33535012,0.00035,2]
[312073074,1705597841586,-3279.57264357,0.00035,45]
[312073075,1705597841595,-1004.53357033,0.00035,7]
[312073077,1705597841604,-563.33668439,0.00035,2]
[312073079,1705597841617,-156.26613286,0.00035,6]
[312073081,1705597841626,-157.79212316,0.00035,2]
[312073082,1705597841637,-201.95961414,0.00035,2]
[312073084,1705597841646,-155.0,0.00035163,2]
[312073086,1705597841655,-159.105026,0.00035448,2]
[312073088,1705597841665,-631.69416237,0.00035616,2]
[312073089,1705597841674,-150.95004265,0.00035616,7]
[312073090,1705597841683,-963.660028,0.00035616,120]
[312073092,1705597841692,-201.95961414,0.000357,2]
[312073093,1705597841702,-153.77573265,0.00035714,7]
[312073095,1705597841711,-153.77573265,0.00035784,7]
[312073097,1705597841720,-153.77573265,0.00035794,7]
[312073098,1705597841729,-153.77573265,0.0003586,7]
[312073099,1705597841738,-185.622531,0.0003589,2]
[312073100,1705597841747,-152.69325559,0.00036081,7]
[312073101,1705597841756,-260.846709,0.00036097,2]
[312073102,1705597841765,-1307.518166,0.00036097,2]
[312073103,1705597841774,-886.878802,0.00036097,2]
[312073104,1705597841783,-1294.038598,0.00036097,2]
[312073105,1705597841792,-747.760559,0.00036097,2]
[312073106,1705597841801,-391.27006,0.00036097,2]
[312073107,1705597841811,-195.453747,0.00036097,2]
[312073108,1705597841820,-165.17593,0.00036097,2]
[312073109,1705597841829,-572.88167,0.00036097,2]
[312073110,1705597841839,-159.406321,0.00036097,2]
[312073111,1705597841848,-253.71495932,0.0003624,2]
[312073112,1705597841857,-159.105026,0.00036333,2]
[312073113,1705597841869,-201.95961414,0.000364,2]
[312073114,1705597841877,-212.15557744,0.00036492,2]
[312073115,1705597841886,-155.0,0.00036533,2]
[312073116,1705597841898,-1307.518166,0.00036548,2]
[312073117,1705597841906,-886.878802,0.00036548,2]
[312073118,1705597841915,-1294.038598,0.00036548,2]
[312073119,1705597841925,-747.760559,0.00036548,2]
[312073120,1705597841935,-391.27006,0.00036548,2]
[312073121,1705597841945,-195.453747,0.00036548,2]
[312073122,1705597841955,-572.88167,0.00036548,2]
[312073123,1705597841964,-428.744075,0.00036575,4]
[312073124,1705597841973,-150.0,0.000368,11]
[312073125,1705597841983,-306.43087312,0.00036985,2]
[312073126,1705597841993,-1307.518166,0.00036999,2]
[312073127,1705597842003,-886.878802,0.00036999,2]
[312073128,1705597842013,-1294.038598,0.00036999,2]
[312073129,1705597842022,-747.760559,0.00036999,2]
[312073130,1705597842032,-391.27006,0.00036999,2]
[312073131,1705597842041,-195.453747,0.00036999,2]
[312073132,1705597842051,-159.406321,0.00036999,2]
[312073133,1705597842060,-572.88167,0.00036999,2]
[312073134,1705597842069,-4737.91512731,0.00037,8]
[312073135,1705597842079,-418.80217228,0.00037,2]
[312073136,1705597842088,-152.69325559,0.00037097,7]
[312073137,1705597842097,-242.35153696,0.000371,5]
[312073138,1705597842106,-159.105026,0.00037218,2]
[312073139,1705597842117,-216.9676031,0.0003724,2]
[312073140,1705597842127,-1307.518166,0.0003745,2]
[312073141,1705597842136,-886.878802,0.0003745,2]
[312073142,1705597842146,-1294.038598,0.0003745,2]
[312073143,1705597842155,-747.760559,0.0003745,2]
[312073144,1705597842164,-391.27006,0.0003745,2]
[312073145,1705597842174,-195.453747,0.0003745,2]
[312073146,1705597842182,-572.88167,0.0003745,2]
[312073147,1705597842191,-152.69325559,0.00037518,7]
[312073148,1705597842200,-242.35153696,0.000378,5]
[312073149,1705597842210,-1307.518166,0.00037902,2]
[312073150,1705597842219,-886.878802,0.00037902,2]
[312073151,1705597842229,-1294.038598,0.00037902,2]
[312073152,1705597842238,-747.760559,0.00037902,2]
[312073153,1705597842247,-391.27006,0.00037902,2]
[312073154,1705597842256,-195.453747,0.00037902,2]
[312073155,1705597842266,-159.406321,0.00037902,2]
[312073156,1705597842275,-572.88167,0.00037902,2]
[312073157,1705597842284,-219.88406619,0.00038,4]
[312073158,1705597842293,-10837.95274509,0.00038,3]
[312073159,1705597842302,-3923.20884879,0.00038,2]
[312073160,1705597842311,-2793.76201869,0.00038,14]
[312073161,1705597842320,-20000.0,0.00038,4]
[312073162,1705597842329,-311.0,0.00038,2]
[312073163,1705597842338,-212.15557744,0.00038085,2]
[312073164,1705597842347,-159.105026,0.00038103,2]
[312073165,1705597842356,-391.0,0.00038264,15]
[312073166,1705597842367,-2137.88596785,0.000385,4]
[312073167,1705597842377,-282.74345979,0.000385,8]
[312073168,1705597842386,-311.0,0.0003863,14]
[312073169,1705597842398,-159.105026,0.00038988,2]
[312073170,1705597842407,-33823.49549193,0.00039234,2]
[312073171,1705597842420,-10202.84952288,0.00039234,2]
[312073172,1705597842431,-20916.22490122,0.00039234,2]
[312073173,1705597842442,-5536.70289086,0.00039234,2]
[312073174,1705597842453,-3273.90864241,0.00039234,2]
[312073175,1705597842465,-29036.18427065,0.00039234,2]
[312073176,1705597842476,-262.3827165,0.00039234,2]
[312073177,1705597842488,-264.938001,0.00039234,2]
[312073178,1705597842499,-419.11,0.00039234,2]
[312073179,1705597842514,-102012.21245724,0.00039234,2]
[312073180,1705597842525,-5003.11436,0.00039234,2]
[312073182,1705597842551,-3319.38818164,0.00039234,2]
[312073183,1705597842562,-620.14389681,0.00039234,2]
[312073184,1705597842574,-3075.40939245,0.00039234,2]
[312073185,1705597842584,-4901.07,0.00039234,2]
[312073237,1705597843302,-5865.59601079,0.00039234,2]
[312073240,1705597843358,-0.07319244,0.00039234,2]
[312073241,1705597843372,-1684.60969121,0.00039234,2]
[312073272,1705597846306,-199.840184,0.00031512,2]
[312073273,1705597846317,-38076.36492029,0.00039234,2]
[312073274,1705597846326,-5000.0,0.00039435,7]
[312073275,1705597846335,-5000.0,0.00039443,7]
[312073276,1705597846345,-212.15557744,0.00039677,2]
[312073277,1705597846354,-5000.0,0.00039793,4]
[312073278,1705597846363,-159.105026,0.00039874,2]
[312073279,1705597846375,-5767.6855528,0.0003999,4]
[312073280,1705597846384,-3974.24551468,0.00039999,2]
[312073281,1705597846393,-500.0,0.0004,10]
[312073282,1705597846402,-154.93802479,0.0004,4]
[312073283,1705597846411,-738.12683061,0.0004,2]
[312073284,1705597846420,-5000.0,0.0004,2]
[312073285,1705597846429,-719.46157424,0.0004,2]
[312073286,1705597846438,-8893.38699722,0.0004,15]
[312073287,1705597846446,-301.91589292,0.0004,2]
[312073288,1705597846455,-2716.84535538,0.0004,2]
[312073289,1705597846465,-16207.55387816,0.0004,10]
[312073290,1705597846474,-168.22710666,0.0004,2]
[312073291,1705597846483,-1919.56123507,0.0004,4]
[312073292,1705597846492,-154.95351395,0.0004,4]
[312073293,1705597846501,-153.98224892,0.00040049,30]
[312073294,1705597846510,-152.69325559,0.00040081,30]
[312073295,1705597846519,-773.63831589,0.00040091,2]
[312073296,1705597846528,-1500.0,0.000402,3]
[312073297,1705597846537,-311.0,0.00040274,14]
[312073298,1705597846546,-153.77573265,0.00040483,30]
[312073299,1705597846555,-159.105026,0.00040759,2]
[312073300,1705597846564,-150.0,0.00040829,4]
[312073301,1705597846574,-471.33694125,0.00040999,2]
[312073302,1705597846583,-500.0,0.00040999,4]
[312073303,1705597846592,-380.22965543,0.00040999,4]
[312073304,1705597846601,-472.05023866,0.00040999,4]
[312073305,1705597846609,-153.06318702,0.00040999,4]
[312073306,1705597846620,-294.59443179,0.00040999,4]
[312073307,1705597846630,-500.0,0.00040999,4]
[312073308,1705597846639,-500.0,0.00040999,4]
[312073309,1705597846648,-500.0,0.00040999,4]
[312073310,1705597846657,-500.0,0.00040999,4]
[312073311,1705597846666,-228.14356462,0.00040999,4]
[312073312,1705597846676,-185.30536879,0.00040999,7]
[312073313,1705597846685,-500.0,0.00040999,7]
[312073314,1705597846695,-263.10587404,0.00040999,7]
[312073315,1705597846704,-500.0,0.00040999,7]
[312073316,1705597846714,-500.0,0.00040999,7]
[312073317,1705597846723,-355.17333273,0.00040999,7]
[312073318,1705597846732,-158.86680271,0.00040999,7]
[312073319,1705597846741,-500.0,0.00040999,7]
[312073320,1705597846750,-499.99999999,0.00040999,4]
[312073321,1705597846759,-4336.59802954,0.00041,10]
[312073322,1705597846769,-13144.24671967,0.00041,2]
[312073323,1705597846778,-22359.87581997,0.00041,10]
[312073324,1705597846787,-198.52508774,0.00041,5]
[312073325,1705597846796,-5499.99999104,0.00041,2]
[312073326,1705597846805,-234.81558708,0.00041094,4]
[312073327,1705597846814,-197.72297422,0.00041094,4]
[312073328,1705597846823,-900.80379507,0.00041094,4]
[312073329,1705597846917,-9266.87323129,0.00041094,4]
[312073330,1705597846935,-837.5,0.00041094,4]
[312073331,1705597847249,-0.5358142,0.00041094,4]
[312073339,1705597968987,-587.0,0.00021999,2]
[312073340,1705598038503,-101.82709207,0.00021999,2]
[312073341,1705598038527,-289.17290793,0.00022,4]
[312073347,1705598102915,-3.65767223,0.00022,4]
[312073348,1705598102936,-151.34232777,0.00022,2]
[312073378,1705598823792,-515.75887726,0.000199,2]
[312073379,1705598823814,-154.95351395,0.00021999,4]
[312073380,1705598823835,-3.61118618,0.00022,2]
[312073381,1705598823855,-128.67642261,0.00022,2]
[312073385,1705598844102,-296.94392548,0.00022,2]
[312073386,1705598844122,-515.75887726,0.000249,2]
[312073387,1705598844141,-1045.45812768,0.00028999,2]
[312073388,1705598844161,-2455.73923901,0.00029,2]
[312073389,1705598844183,-161.152368,0.00029305,2]
[312073390,1705598844205,-166.666666,0.00029574,2]
[312073391,1705598844231,-265.29463527,0.00029579,2]
[312073432,1705599034493,-170.76550909,0.0002928,2]
[312073434,1705599034503,-154.95351395,0.00029281,4]
[312073436,1705599034512,-15.88290801,0.00029283,2]
[312073517,1705599038418,-150.78375799,0.00029283,2]
[312073519,1705599038428,-305.46439516,0.00029579,2]
[312073521,1705599038438,-261.3528024,0.00029579,2]
[312073522,1705599038447,-6265.21741294,0.00029579,2]
[312073525,1705599038459,-2316.48588874,0.00029579,2]
[312073527,1705599038470,-10202.84952288,0.00029579,2]
[312073529,1705599038484,-5850.15254017,0.00029579,2]
[312073531,1705599038494,-515.75887726,0.000299,2]
[312073533,1705599038504,-2491.60757104,0.0003,4]
[312073535,1705599038513,-201.08171049,0.0003008,4]
[312073537,1705599038522,-166.666666,0.00030081,2]
[312073539,1705599038531,-164.408527,0.00030137,2]
[312073541,1705599038541,-167.944194,0.00030137,2]
[312073543,1705599038551,-166.666666,0.0003088,2]
[312073545,1705599038560,-863.27559627,0.0003092,2]
[312073547,1705599038569,-152.69325559,0.00031627,7]
[312073549,1705599038578,-166.666666,0.00031678,2]
[312073551,1705599038588,-22281.32763676,0.000318,6]
[312073553,1705599038597,-3988.40896189,0.000318,6]
[312073555,1705599038608,-153.77573265,0.00031925,7]
[312073557,1705599038616,-166.666666,0.00032476,2]
[312073559,1705599038625,-200.0,0.00032536,15]
[312073561,1705599038634,-153.98224892,0.00032684,7]
[312073563,1705599038643,-3299.45771076,0.00032875,4]
[312073565,1705599038652,-950.0,0.00032876,2]
[312073567,1705599038662,-386.32476631,0.00033,2]
[312073569,1705599038671,-164.408527,0.00033014,2]
[312073571,1705599038680,-950.0,0.0003315,2]
[312073573,1705599038689,-166.666666,0.00033275,2]
[312073575,1705599038699,-950.0,0.00033424,2]
[312073577,1705599038708,-187.93276,0.00033588,2]
[312073579,1705599038717,-950.0,0.00033698,2]
[312073581,1705599038726,-950.0,0.00033972,2]
[312073583,1705599038735,-950.0,0.00034246,2]
[312073585,1705599038744,-950.0,0.0003452,2]
[312073587,1705599038753,-950.0,0.00034794,2]
[312073589,1705599038762,-3185.58,0.0003496,3]
[312073591,1705599038771,-3822.7,0.0003497,3]
[312073593,1705599038779,-4587.24,0.0003498,3]
[312073595,1705599038788,-1600.0,0.0003499,6]
[312073597,1705599038797,-157.79212316,0.00035,2]
[312073599,1705599038806,-3279.57264357,0.00035,45]
[312073601,1705599038816,-2354.33535012,0.00035,2]
[312073603,1705599038825,-201.95961414,0.00035,2]
[312073605,1705599038834,-2947.56243356,0.00035,15]
[312073607,1705599038843,-20084.12527709,0.00035,4]
[312073608,1705599038853,-154.95351395,0.00035,4]
[312073610,1705599038863,-9658.53447684,0.00035052,4]
[312073612,1705599038873,-1051.44910233,0.00035052,4]
[312073615,1705599038885,-408.87235708,0.00035052,4]
[312073617,1705599038897,-2112.83403572,0.00035052,4]
[312073619,1705599038907,-1104.18339118,0.00035053,14]
[312073621,1705599038915,-1521.4947375,0.00035053,2]
[312073623,1705599038924,-475.72668137,0.00035054,4]
[312073625,1705599038934,-154.95351395,0.00035055,4]
[312073627,1705599038943,-154.95351395,0.00035056,2]
[312073629,1705599038952,-154.95351395,0.00035057,4]
[312073631,1705599038960,-593.65639766,0.00035068,2]
[312073713,1705599043919,-356.34360234,0.00035068,2]
[312073714,1705599043929,-152.69325559,0.00035322,7]
[312073716,1705599043939,-155.00310006,0.00035615,4]
[312073718,1705599043948,-500.0,0.00035616,2]
[312073721,1705599043957,-500.0,0.00035616,2]
[312073723,1705599043966,-500.0,0.00035616,2]
[312073724,1705599043976,-500.0,0.00035616,2]
[312073725,1705599043985,-500.0,0.00035616,2]
[312073726,1705599043993,-500.0,0.00035616,2]
[312073727,1705599044003,-500.0,0.00035616,2]
[312073728,1705599044012,-500.0,0.00035616,2]
[312073729,1705599044021,-500.0,0.00035616,2]
[312073730,1705599044031,-500.0,0.00035616,2]
[312073731,1705599044040,-500.0,0.00035616,2]
[312073733,1705599044050,-500.0,0.00035616,2]
[312073735,1705599044059,-500.0,0.00035616,2]
[312073737,1705599044068,-500.0,0.00035616,2]
[312073739,1705599044077,-500.0,0.00035616,2]
[312073741,1705599044086,-500.0,0.00035616,2]
[312073742,1705599044095,-265.24894371,0.00035616,2]
[312073744,1705599044105,-631.69416237,0.00035616,2]
[312073745,1705599044114,-150.95004265,0.00035616,7]
[312073747,1705599044123,-963.660028,0.00035616,120]
[312073748,1705599044132,-201.95961414,0.000357,2]
[312073750,1705599044141,-280.0,0.0003579,15]
[312073752,1705599044151,-164.408527,0.0003589,2]
[312073754,1705599044159,-167.944194,0.0003589,2]
[312073756,1705599044168,-1221.57018504,0.00036096,4]
[312073757,1705599044177,-788.554771,0.00036097,2]
[312073758,1705599044186,-437.063148,0.00036097,2]
[312073759,1705599044195,-297.898469,0.00036097,2]
[312073760,1705599044204,-405.181884,0.00036097,2]
[312073761,1705599044213,-935.482069,0.00036097,2]
[312073762,1705599044222,-437.063149,0.00036097,2]
[312073763,1705599044231,-1086.453239,0.00036097,2]
[312073764,1705599044241,-842.245032,0.00036097,2]
[312073765,1705599044250,-165.17593,0.00036097,2]
[312073766,1705599044259,-261.503633,0.00036097,2]
[312073767,1705599044268,-260.846712,0.00036097,2]
[312073768,1705599044278,-201.95961414,0.000364,2]
[312073769,1705599044287,-153.77573265,0.00036544,7]
[312073770,1705599044296,-1251.45335161,0.00036547,4]
[312073771,1705599044305,-788.554771,0.00036548,2]
[312073772,1705599044317,-437.063148,0.00036548,2]
[312073773,1705599044326,-297.898469,0.00036548,2]
[312073774,1705599044335,-405.181884,0.00036548,2]
[312073775,1705599044344,-935.482069,0.00036548,2]
[312073776,1705599044355,-437.063149,0.00036548,2]
[312073777,1705599044365,-842.245032,0.00036548,2]
[312073778,1705599044374,-1086.453239,0.00036548,2]
[312073779,1705599044383,-261.503633,0.00036548,2]
[312073781,1705599044395,-428.744075,0.00036575,4]
[312073782,1705599044404,-306.43087312,0.00036894,2]
[312073784,1705599044413,-788.554771,0.00036999,2]
[312073786,1705599044422,-437.063148,0.00036999,2]
[312073787,1705599044431,-297.898469,0.00036999,2]
[312073789,1705599044441,-405.181884,0.00036999,2]
[312073790,1705599044450,-935.482069,0.00036999,2]
[312073791,1705599044459,-437.063149,0.00036999,2]
[312073792,1705599044469,-842.245032,0.00036999,2]
[312073793,1705599044478,-1086.453239,0.00036999,2]
[312073794,1705599044489,-261.503633,0.00036999,2]
[312073795,1705599044498,-242.35153696,0.000371,5]
[312073796,1705599044507,-788.554771,0.0003745,2]
[312073797,1705599044517,-437.063148,0.0003745,2]
[312073798,1705599044526,-297.898469,0.0003745,2]
[312073799,1705599044535,-405.181884,0.0003745,2]
[312073800,1705599044544,-935.482069,0.0003745,2]
[312073801,1705599044554,-437.063149,0.0003745,2]
[312073802,1705599044563,-842.245032,0.0003745,2]
[312073803,1705599044573,-1086.453239,0.0003745,2]
[312073804,1705599044582,-261.503633,0.0003745,2]
[312073805,1705599044591,-153.77573265,0.00037478,7]
[312073806,1705599044601,-153.77573265,0.00037715,7]
[312073807,1705599044611,-242.35153696,0.000378,5]
[312073808,1705599044620,-788.554771,0.00037902,2]
[312073809,1705599044629,-437.063148,0.00037902,2]
[312073810,1705599044638,-297.898469,0.00037902,2]
[312073811,1705599044647,-405.181884,0.00037902,2]
[312073812,1705599044657,-183.89679273,0.00037902,2]
[312073813,1705599044670,-751.58527627,0.00037902,2]
[312073814,1705599044679,-437.063149,0.00037902,2]
[312073815,1705599044688,-1086.453239,0.00037902,2]
[312073816,1705599044697,-842.245032,0.00037902,2]
[312073817,1705599044706,-261.503633,0.00037902,2]
[312073818,1705599044715,-219.88406619,0.00038,4]
[312073819,1705599044725,-205.03052142,0.00038,4]
[312073820,1705599044734,-2137.88596785,0.000385,4]
[312073821,1705599044743,-282.74345979,0.000385,8]
[312073822,1705599044752,-152.69325559,0.00038623,7]
[312073823,1705599044762,-164.408527,0.00038767,2]
[312073824,1705599044772,-1000.0,0.00039,39]
[312073825,1705599044781,-290.00241025,0.00039038,4]
[312073826,1705599044791,-4131.18734769,0.00039234,2]
[312073856,1705599050729,-2474.8,0.00037544,2]
[312073857,1705599050739,-6071.66217519,0.00039234,2]
[312073858,1705599050748,-33823.49549193,0.00039234,2]
[312073859,1705599050757,-830.04233288,0.00039356,10]
[312073860,1705599050769,-169.95766712,0.00039356,10]
[312073861,1705599050779,-391.0,0.00039369,30]
[312073862,1705599050789,-3602.76132668,0.00039452,7]
[312073863,1705599050805,-1397.23867332,0.00039452,7]
[312073864,1705599050815,-437.78160766,0.00039452,7]
[312073865,1705599050828,-1201.89045375,0.00039452,7]
[312073885,1705599930081,-175.672408,0.00029503,2]
[312073886,1705599930101,-1292.89594537,0.00029545,2]
[312073887,1705599930121,-1196.96135251,0.00029546,2]
[312073888,1705599930235,-361.23328326,0.00029547,2]
[312073889,1705599930255,-154.93802479,0.00029547,4]
[312073890,1705599930275,-4718.82684458,0.00029548,2]
[312073891,1705599930294,-331.52516909,0.00029561,2]
[312073892,1705599930313,-1241.29651015,0.00029576,2]
[312073893,1705599930332,-531.63445466,0.00029578,2]
[312073894,1705599930351,-464.23133021,0.0003,2]
[312073895,1705599930370,-2491.60757104,0.0003,4]
[312073896,1705599930391,-687.89788967,0.00030136,4]
[312073897,1705599930410,-180.31903,0.00030137,2]
[312073898,1705599930428,-167.944194,0.00030137,2]
[312073899,1705599930447,-153.67736205,0.00031139,7]
[312073900,1705599930466,-198.957615,0.000312,2]
[312073901,1705599930486,-175.672408,0.00031514,2]
[312073902,1705599930505,-153.67736205,0.0003174,7]
[312073903,1705599930524,-164.13059612,0.00031831,4]
[312073904,1705599930545,-5435.03520581,0.00031832,6]
[312073905,1705599930566,-8325.40062475,0.00031832,6]
[312073906,1705599930587,-153.67736205,0.00032443,7]
[312073907,1705599930606,-165.90071,0.00032502,2]
[312073908,1705599930626,-154.93802479,0.00032774,4]
[312073909,1705599930646,-701.95047309,0.00032774,4]
[312073910,1705599930665,-200.98315984,0.00032774,4]
[312073911,1705599930686,-156.20759517,0.00032775,4]
[312073912,1705599930706,-24900.0,0.00032776,2]
[312073913,1705599930726,-153.67736205,0.00032964,7]
[312073914,1705599930744,-386.32476631,0.00033,2]
[312073915,1705599930763,-272.0,0.00033,2]
[312073916,1705599930782,-272.0,0.00033151,2]
[312073917,1705599930801,-175.672408,0.00033525,2]
[312073918,1705599930820,-180.31903,0.00033973,2]
[312073919,1705599930839,-272.0,0.00034521,2]
[312073920,1705599930859,-430.86875032,0.0003499,6]
[312073921,1705599930880,-5565.29,0.0003499,3]
[312073922,1705599930899,-4637.74,0.0003499,3]
[312073923,1705599930919,-2456.30202796,0.00035,15]
[312073924,1705599930938,-154.93802479,0.00035,2]
[312073925,1705599930957,-13389.41685139,0.00035,4]
[312073926,1705599930976,-475.72668137,0.00035,4]
[312073927,1705599930995,-6760.97413379,0.00035,4]
[312073928,1705599931016,-1014.329825,0.00035,2]
[312073929,1705599931035,-154.93802479,0.00035,4]
[312073930,1705599931053,-2977.62957927,0.00035,4]
[312073931,1705599931072,-154.93802479,0.00035,4]
[312073932,1705599931092,-30.24573412,0.00035616,120]
[312073933,1705600033096,-24900.0,0.00030063,2]
[312073934,1705600033116,-172.6763904,0.000325,2]
[312073935,1705600033137,-172.6763904,0.000325,2]
[312073936,1705600033158,-172.6763904,0.000325,2]
[312073937,1705600033178,-172.6763904,0.000325,2]
[312073938,1705600033199,-172.6763904,0.000325,2]
[312073939,1705600033220,-172.6763904,0.000325,2]
[312073940,1705600033241,-172.6763904,0.000325,2]
[312073941,1705600033262,-172.6763904,0.000325,2]
[312073942,1705600033283,-172.6763904,0.000325,2]
[312073943,1705600033304,-172.67639,0.000325,2]
[312073944,1705600033324,-170.0,0.00033,2]
[312073945,1705600033344,-386.32476631,0.00033,2]
[312073946,1705600033367,-154.95351395,0.0003315,5]
[312073947,1705600033387,-170.0,0.00033151,2]
[312073948,1705600033407,-170.0,0.00034521,2]
[312073949,1705600033428,-392.8450641,0.00034989,4]
[312073950,1705600033447,-400.17858735,0.00034989,2]
[312073951,1705600033469,-2491.60757104,0.00035603,4]
[312073952,1705600033492,-2977.62957927,0.00035604,4]
[312073953,1705600033511,-1819.21544079,0.00035605,2]
[312073954,1705600033532,-650.89335401,0.00035616,4]
[312073955,1705600033551,-283.01176432,0.00035616,3]
[312073956,1705600033571,-410.41281499,0.00035616,4]
[312073957,1705600033590,-351.14579978,0.00035616,4]
[312073958,1705600033689,-195.1690538,0.00035616,4]
[312073959,1705600033711,-1036.403596,0.00035616,120]
[312073960,1705600033733,-174.0,0.00036247,2]
[312073961,1705600033752,-154.95351395,0.0003689,4]
[312073962,1705600033771,-11157.84737616,0.0003689,2]
[312073963,1705600033792,-2456.30202796,0.00036891,15]
[312073964,1705600033812,-845.27485417,0.00036892,2]
[312073965,1705600033832,-1214.92709313,0.00036893,4]
[312073966,1705600033852,-2419.20278256,0.00037548,2]
[312073967,1705600037089,-2580.79721744,0.00037548,2]
[312073968,1705600037109,-5000.0,0.00037558,2]
[312073969,1705600037129,-9718.97503141,0.0003756,4]
[312073970,1705600037148,-5000.0,0.00037561,2]
[312073971,1705600037169,-2683.88,0.00037571,3]
[312073972,1705600037188,-5000.01,0.00037571,2]
[312073973,1705600037209,-3220.65,0.00037572,3]